bitfinex-derivatives/quotes_ETHF0:USTF0_20240822
["timestamp","ask_amount","ask_price","bid_price","bid_amount"]
[1724293074884,0.15542492,2622.3,2622.2,0.22874]
[1724293076170,2.47761414,2622.5,2622.4,0.22873]
[1724293076370,2.96176404,2622.5,2622.4,0.22873]
[1724293076565,6.77536404,2622.5,2622.4,0.22873]
[1724293077469,4.2977499,2622.5,2622.4,0.22873]
[1724293077780,3.8136,2622.5,2622.4,0.22873]
[1724293078175,3.96899421,2622.5,2622.4,0.22873]
[1724293078382,0.15539421,2622.5,2622.4,0.22873]
[1724293078675,0.15539421,2622.5,2622.3,0.22873]
[1724293078877,3.33982878,2622.6,2622.4,0.22873]
[1724293079078,3.33982878,2622.6,2622.3,0.22873]
[1724293079079,3.69185112,2622.5,2622.3,0.22873]
[1724293079282,3.4615799,2622.4,2622.3,0.22873]
[1724293079558,3.46159855,2622.4,2622.3,0.22873]
[1724293079670,4.29766977,2622.4,2622.3,0.22873]
[1724293080382,4.29766977,2622.4,2622.2,0.22874]
[1724293080588,0.48406977,2622.3,2622.2,0.22874]
[1724293080786,0.48406977,2622.3,2621.8,0.00335639]
[1724293081085,4.42306977,2622.2,2621.9,0.22877]
[1724293081278,0.48406977,2622.1,2622.0,0.22876]
[1724293081684,3.8136,2622.1,2621.9,0.22877]
[1724293081887,0.354,2622.0,2621.8,0.00335639]
[1724293082075,0.32866971,2621.9,2621.8,0.23213639]
[1724293082277,0.48405982,2621.9,2621.8,0.23213639]
[1724293083174,0.48405982,2621.9,2621.8,4.04653639]
[1724293083580,0.48405982,2621.9,2621.8,4.61849639]
[1724293083786,0.48405982,2621.9,2621.8,4.04653639]
[1724293084587,0.48405982,2621.9,2621.8,0.23213639]
[1724293084984,2.47155537,2622.1,2622.0,0.22876]
[1724293085200,2.47155537,2622.1,2621.8,0.00335639]
[1724293085382,2.96108555,2622.0,2621.9,0.22877]
[1724293085785,0.48382458,2622.0,2621.9,0.22877]
[1724293086287,4.29742458,2622.0,2621.8,0.00335639]
[1724293086589,0.84332458,2621.9,2621.8,0.22878]
[1724293086893,0.84332458,2621.9,2621.7,0.22878]
[1724293087190,2.96148158,2621.8,2621.7,0.22878]
[1724293087377,2.96148158,2621.8,2621.7,0.23240193]
[1724293088198,2.63297213,2621.8,2621.7,0.23240193]
[1724293088492,2.9614956,2621.8,2621.7,0.23240193]
[1724293089982,0.4838386,2621.8,2621.7,0.23240193]
[1724293090598,0.8501386,2621.8,2621.7,0.23240193]
[1724293090804,3.6808956,2621.8,2621.7,0.23240193]
[1724293091013,2.9614956,2621.8,2621.7,0.23240193]
[1724293091523,2.477657,2621.8,2621.7,0.23240193]
[1724293091817,2.477657,2621.9,2621.8,0.22878]
[1724293092008,6.62058493,2621.9,2621.8,0.22878]
[1724293092208,2.961512,2621.9,2621.8,0.22878]
[1724293093014,2.961512,2621.9,2621.8,4.61514]
[1724293093217,0.483855,2621.9,2621.8,4.61514]
[1724293093703,0.483855,2621.9,2621.8,5.1871]
[1724293093900,5e-06,2621.9,2621.8,10.66393641]
[1724293094117,5.685457,2622.3,2621.9,0.57194]
[1724293094315,0.48397819,2622.2,2622.0,0.3484]
[1724293094613,3.2078,2622.3,2622.2,0.22875]
[1724293094835,6.66752436,2622.3,2622.2,0.22875]
[1724293095018,3.69177579,2622.3,2622.2,0.22875]
[1724293095207,3.45962634,2622.3,2622.2,0.22875]
[1724293095408,3.45962634,2622.3,2622.2,4.04235]
[1724293095618,3.45962634,2622.3,2622.2,0.22875]
[1724293095921,0.48397579,2622.3,2622.2,0.22875]
[1724293096317,3.45957491,2622.3,2622.2,0.22875]
[1724293096518,0.48397579,2622.3,2622.2,0.22875]
[1724293096716,3.45955426,2622.3,2622.2,0.22875]
[1724293096911,0.48397579,2622.3,2622.2,0.22875]
[1724293098232,3.47880514,2622.4,2622.3,0.22874]
[1724293098511,3.96248366,2622.4,2622.3,0.22874]
[1724293100512,0.48367852,2622.4,2622.3,0.22874]
[1724293101433,3.47880514,2622.5,2622.4,0.22873]
[1724293101513,3.47880514,2622.5,2622.4,0.12883038]
[1724293101713,3.45935077,2622.5,2622.4,0.12883038]
[1724293103220,0.48367466,2622.5,2622.4,0.12883038]
[1724293104310,7.7760798,2622.5,2622.3,0.22873]
[1724293104522,0.22874,2622.3,2622.1,0.22875]
[1724293104723,3.333283,2622.2,2622.1,0.22875]
[1724293104920,3.81687252,2622.2,2622.1,0.22875]
[1724293105320,0.84138952,2622.2,2622.1,0.22875]
[1724293105719,0.48358952,2622.2,2622.1,0.22875]
[1724293105928,0.48358952,2622.2,2622.1,4.04235]
[1724293108931,0.48358952,2622.2,2622.1,4.61424]
[1724293109226,2.96157382,2622.2,2622.1,5.18613]
[1724293109423,0.48358952,2622.2,2622.1,5.18613]
[1724293109729,0.48358952,2622.2,2622.1,10.18613]
[1724293110120,0.48358952,2622.2,2622.1,10.66291682]
[1724293110817,0.48358952,2622.2,2622.1,51.46291682]
[1724293111013,2.4779843,2622.5,2622.4,0.22873]
[1724293111228,2.96129983,2622.5,2622.4,4.04233]
[1724293112127,2.96129983,2622.5,2622.4,4.61416]
[1724293112525,0.48331553,2622.5,2622.4,4.61416]
[1724293113926,0.48331553,2622.5,2622.4,9.61416]
[1724293114132,2.4779843,2622.7,2622.6,0.22871]
[1724293114331,2.48852571,2622.7,2622.6,4.34329]
[1724293114529,0.0037539,2622.9,2622.8,0.80043]
[1724293115132,0.0037539,2622.9,2622.8,9.61323]
[1724293115329,0.0037539,2622.9,2622.8,10.37383]
[1724293115637,0.0029856,2623.1,2623.0,0.22868]
[1724293117425,3.47040079,2623.1,2623.0,0.22868]
[1724293117722,3.47040079,2623.1,2622.9,0.22868]
[1724293117922,0.0029856,2623.1,2623.0,0.22868]
[1724293118329,3.97999833,2623.1,2622.9,0.22868]
[1724293118636,0.3733,2623.0,2622.8,0.22869]
[1724293118822,3.46653947,2622.9,2622.8,0.22869]
[1724293120604,4.22523947,2623.0,2622.9,0.22869]
[1724293121435,0.7587,2623.0,2622.8,0.22869]
[1724293121631,3.46516949,2622.9,2622.8,0.22869]
[1724293123959,0.7587,2623.0,2622.9,0.22868]
[1724293125034,0.0029856,2623.1,2623.0,0.22868]
[1724293126531,0.1580266,2623.1,2623.0,0.22868]
[1724293130756,0.15806204,2623.1,2623.0,0.22868]
[1724293131035,0.15806204,2623.1,2623.0,4.61238]
[1724293131225,0.15806204,2623.1,2623.0,4.98038]
[1724293131544,0.0029856,2623.1,2623.0,8.18818]
[1724293131726,3.2078,2623.4,2623.3,0.22865]
[1724293131931,3.36286905,2623.4,2623.3,0.22865]
[1724293132628,3.3656297,2623.4,2623.3,0.22865]
[1724293132831,2.96992781,2624.0,2623.4,0.57161]
[1724293133034,0.1550543,2623.9,2623.8,0.22861]
[1724293133328,0.1550543,2623.9,2623.6,0.22862]
[1724293133530,0.1550543,2623.8,2623.5,0.22863]
[1724293133730,0.5330543,2623.7,2623.6,0.22862]
[1724293133932,0.53778718,2623.7,2623.6,0.0047501]
[1724293134135,4.34898718,2623.7,2623.6,0.0047501]
[1724293134325,9.71168718,2623.7,2623.6,0.0047501]
[1724293134524,12.68161499,2623.7,2623.6,0.0047501]
[1724293135138,7.68161499,2623.7,2623.6,0.0047501]
[1724293135439,9.71168718,2623.7,2623.6,0.0047501]
[1724293136747,9.71168718,2623.7,2622.9,0.31619552]
[1724293137037,5.68214795,2623.2,2622.9,0.00572836]
[1724293137258,0.3809,2623.1,2623.0,0.22868]
[1724293137501,0.7454,2623.1,2623.0,0.22868]
[1724293137636,7.18680829,2623.1,2622.9,0.23440836]
[1724293137837,0.3805,2623.0,2622.9,0.23865627]
[1724293138031,2.85484795,2623.0,2622.9,0.23865627]
[1724293138239,0.53556034,2623.0,2622.9,0.23865627]
[1724293140544,9.42198,2623.0,2622.9,0.00997627]
[1724293140740,9.36928597,2623.0,2622.9,0.00997627]
[1724293140939,12.31760554,2623.0,2622.9,0.00997627]
[1724293141143,7.31760554,2623.0,2622.3,3.2078]
[1724293141346,2.47563298,2622.8,2622.7,0.2287]
[1724293141534,2.63072098,2622.8,2622.7,0.2287]
[1724293141847,0.155088,2622.8,2622.7,7.0125]
[1724293142042,0.155088,2622.8,2622.7,7.58830858]
[1724293142243,0.155088,2622.8,2622.7,7.37404858]
[1724293143043,0.0056916,2623.0,2622.9,0.22869]
[1724293143646,0.16072557,2623.0,2622.9,0.22869]
[1724293143946,0.16072557,2623.0,2622.9,4.04149]
[1724293146453,0.16072557,2623.0,2622.9,7.24929]
[1724293147040,2.63635855,2623.0,2622.9,7.24929]
[1724293147451,0.16072557,2623.0,2622.9,7.24929]
[1724293148436,2.63635855,2623.0,2622.9,7.24929]
[1724293149554,2.63630946,2623.0,2622.9,7.24929]
[1724293150054,0.16067648,2623.0,2622.9,7.24929]
[1724293150655,2.63630946,2623.0,2622.9,7.24929]
[1724293150957,2.63630946,2623.0,2622.9,0.22869]
[1724293151258,2.63630946,2623.0,2622.9,4.04149]
[1724293151453,2.63630946,2623.0,2622.9,0.22869]
[1724293151658,2.63630946,2623.0,2622.9,4.04149]
[1724293151958,0.16067648,2623.0,2622.9,4.04149]
[1724293152348,0.16067648,2623.0,2622.9,0.22869]
[1724293152654,3.97347648,2623.0,2622.7,0.00404858]
[1724293152853,3.97347648,2623.0,2622.7,0.23274858]
[1724293152854,0.7284,2622.9,2622.7,0.23274858]
[1724293153049,0.15499724,2622.8,2622.7,0.23274858]
[1724293153651,0.15499724,2622.8,2622.7,0.00404858]
[1724293153852,6.93701478,2622.8,2622.7,0.00404858]
[1724293154157,3.96779724,2622.8,2622.7,0.00404858]
[1724293155472,6.93701478,2622.8,2622.7,0.00404858]
[1724293156268,3.96779724,2622.8,2622.7,0.00404858]
[1724293156471,3.96779724,2622.8,2622.7,0.23274858]
[1724293157070,6.93701478,2622.8,2622.7,0.23274858]
[1724293157263,3.96779724,2622.8,2622.7,0.23274858]
[1724293159072,7.17559724,2622.8,2622.7,0.23274858]
[1724293159274,7.0206,2622.8,2622.7,0.23274858]
[1724293159460,9.98981754,2622.8,2622.7,0.00404858]
[1724293159657,10.14481411,2622.8,2622.7,0.00404858]
[1724293160070,7.17559657,2622.8,2622.7,0.00404858]
[1724293160266,7.40428657,2622.8,2622.7,0.00404858]
[1724293160461,10.37825566,2622.8,2622.7,0.00404858]
[1724293160668,0.22871,2622.7,2622.5,0.00571733]
[1724293160966,0.22871,2622.7,2622.1,0.22875]
[1724293160967,0.22872,2622.5,2622.1,0.22875]
[1724293161163,2.70677776,2622.2,2621.6,0.3696]
[1724293161362,3.01262433,2622.1,2621.6,0.3696]
[1724293161566,2.63302433,2622.0,2621.8,0.22877]
[1724293161777,2.98752433,2621.9,2621.8,0.22877]
[1724293161966,0.50949657,2621.9,2621.8,0.22877]
[1724293162166,2.98526931,2621.9,2621.8,0.22877]
[1724293163874,2.83027274,2621.9,2621.8,0.22877]
[1724293164068,2.98526838,2621.9,2621.8,0.22877]
[1724293164273,0.50949564,2621.9,2621.8,0.22877]
[1724293164467,0.15499564,2621.9,2621.8,0.22877]
[1724293165069,0.15499564,2621.9,2621.8,0.60437]
[1724293165971,5.68357274,2622.1,2622.0,0.22876]
[1724293166165,3.2078,2622.1,2622.0,0.22876]
[1724293166374,3.36279648,2622.1,2622.0,0.22876]
[1724293167874,3.36279648,2622.1,2622.0,0.80068]
[1724293168081,3.2078,2622.1,2622.0,4.61428]
[1724293168766,2.86017274,2622.5,2622.4,0.22873]
[1724293168971,0.53939806,2622.5,2622.4,0.22873]
[1724293169367,0.3844,2622.5,2622.4,0.22873]
[1724293169573,6.82879022,2622.5,2622.3,0.22873]
[1724293169878,0.15501748,2622.4,2622.3,0.22873]
[1724293170376,0.15501748,2622.4,2621.8,0.6932826]
[1724293170377,7.17641748,2622.4,2621.8,0.6932826]
[1724293170580,3.2078,2622.1,2622.0,0.22876]
[1724293170775,3.36281748,2622.1,2621.9,0.22877]
[1724293171086,0.87291748,2622.0,2621.9,0.22877]
[1724293171377,1.23221748,2622.0,2621.9,0.22877]
[1724293171881,5.04581748,2622.0,2621.6,0.00955208]
[1724293172081,3.2078,2621.8,2621.6,0.00955208]
[1724293172279,0.15501748,2621.7,2621.6,0.00955208]
[1724293172676,3.8144,2621.7,2621.6,0.00955208]
[1724293173072,3.96944815,2621.7,2621.6,0.00955208]
[1724293173684,3.96944815,2621.7,2621.6,0.23835208]
[1724293174079,3.21166603,2621.8,2621.7,0.22879]
[1724293174080,0.00386603,2621.8,2621.7,0.22879]
[1724293174278,0.15899918,2621.8,2621.7,0.22879]
[1724293174472,0.15899918,2621.8,2621.7,0.59959]
[1724293174671,0.00386603,2621.8,2621.7,4.76869]
[1724293174868,0.00386603,2621.8,2621.7,0.95429]
[1724293176381,0.00386603,2621.8,2621.7,4.76869]
[1724293176677,0.00386603,2621.8,2621.7,7.97649]
[1724293176981,0.00386603,2621.8,2621.7,13.54847]
[1724293177174,0.00386603,2621.8,2621.7,7.97649]
[1724293177779,0.00386603,2621.8,2621.7,0.95429]
[1724293178185,0.00386603,2621.8,2621.7,4.76869]
[1724293178383,0.00386603,2621.8,2621.7,0.95429]
[1724293178583,0.00386603,2621.8,2621.7,4.76869]
[1724293179378,0.00386603,2621.8,2621.7,0.95429]
[1724293181281,0.15900203,2621.8,2621.7,0.95429]
[1724293181983,0.15900203,2621.8,2621.7,0.59959]
[1724293182578,0.15900357,2621.8,2621.7,0.59959]
[1724293183786,0.15900357,2621.8,2621.7,0.3708]
[1724293184193,3.97340357,2621.8,2621.7,0.22879]
[1724293184691,4.32930357,2621.8,2621.7,0.22879]
[1724293185386,4.32930357,2621.8,2621.6,0.23834208]
[1724293185591,0.352,2621.7,2621.6,0.00955208]
[1724293185895,3.78859,2621.7,2621.6,0.00955208]
[1724293186189,10.23390257,2621.7,2621.6,0.00955208]
[1724293186583,10.00511257,2621.7,2621.6,0.00955208]
[1724293187486,10.00511257,2621.7,2621.1,0.3654]
[1724293187487,0.22881,2621.5,2621.1,0.22884]
[1724293187681,2.99617165,2621.4,2621.1,0.22884]
[1724293187879,0.15513983,2621.3,2621.1,0.22884]
[1724293188087,0.3701,2621.2,2621.1,0.22884]
[1724293188279,0.52523983,2621.2,2621.1,0.22884]
[1724293188485,4.34043983,2621.2,2621.1,0.23242323]
[1724293188887,4.1853,2621.2,2621.1,0.23242323]
[1724293189187,4.34048628,2621.2,2621.1,0.00358323]
[1724293190291,4.34048628,2621.2,2620.9,0.00571733]
[1724293190292,0.22885,2621.0,2620.9,0.00571733]
[1724293190486,3.59183628,2621.0,2620.9,0.00571733]
[1724293190788,12.40703628,2621.0,2620.9,0.00571733]
[1724293191490,12.40703628,2621.0,2620.9,0.00979476]
[1724293191788,12.17818628,2621.0,2620.9,0.00979476]
[1724293192195,12.53430358,2621.0,2620.9,0.00979476]
[1724293192889,3.71910358,2621.0,2620.9,0.23865476]
[1724293193386,3.5639,2621.0,2620.9,0.23865476]
[1724293193887,3.71909392,2621.0,2620.9,0.23865476]
[1724293195292,3.71909392,2621.0,2620.9,0.00979476]
[1724293195690,12.76314392,2621.0,2620.9,0.00979476]
[1724293195885,12.76314556,2621.0,2620.9,0.00979476]
[1724293196789,12.53429556,2621.0,2620.4,0.2289]
[1724293197100,3.2078,2620.7,2620.4,0.2289]
[1724293197288,0.7426,2620.6,2620.4,0.2289]
[1724293197486,0.7426,2620.6,2620.3,0.386]
[1724293197789,0.7426,2620.6,2620.4,0.2289]
[1724293198191,0.7426,2620.6,2620.5,0.22889]
[1724293198385,0.8977929,2620.6,2620.5,0.22889]
[1724293198786,0.7426,2620.6,2620.5,0.22889]
[1724293198985,0.3593,2620.6,2620.5,0.22889]
[1724293200990,3.2078,2621.0,2620.3,0.96265876]
[1724293201193,0.15518787,2620.9,2620.8,0.22887]
[1724293201589,0.7461,2621.1,2620.9,0.22886]
[1724293201785,0.15519732,2621.0,2620.9,0.22886]
[1724293202697,3.2078,2621.3,2621.2,0.22883]
[1724293202886,3.36299271,2621.3,2621.2,0.22883]
[1724293203897,3.71829271,2621.3,2621.2,0.22883]
[1724293204095,4.10219271,2621.3,2620.8,0.3577]
[1724293204301,3.947,2621.3,2621.0,0.22885]
[1724293204493,0.15518125,2621.2,2621.0,0.22885]
[1724293204693,3.947,2621.3,2621.0,0.22885]
[1724293204893,0.15518925,2621.2,2621.0,0.22885]
[1724293205091,3.947,2621.3,2621.1,0.22884]
[1724293205301,0.15518673,2621.2,2621.1,0.22884]
[1724293206494,0.15518673,2621.2,2621.0,0.22885]
[1724293206707,0.15518673,2621.1,2621.0,0.22885]
[1724293206910,0.15519192,2621.2,2620.8,0.22886]
[1724293207095,3.2078,2621.0,2620.9,0.22886]
[1724293207297,3.36299192,2621.0,2620.9,0.22886]
[1724293207499,3.2078,2621.0,2620.9,0.22886]
[1724293207800,3.36300155,2621.0,2620.9,0.22886]
[1724293207997,0.15520155,2621.0,2620.8,0.22886]
[1724293208190,0.15520155,2620.9,2620.8,0.22886]
[1724293208390,0.50610155,2620.9,2620.8,0.22886]
[1724293208597,0.50610155,2620.9,2620.4,3.3495]
[1724293208796,0.3669,2620.8,2620.4,0.3785]
[1724293208991,3.2078,2620.7,2620.3,0.00436876]
[1724293209197,0.3669,2620.8,2620.6,0.22888]
[1724293209498,0.3669,2620.8,2620.7,0.22888]
[1724293209696,0.3669,2620.8,2620.6,0.22889]
[1724293209697,0.52209492,2620.8,2620.6,0.22889]
[1724293209903,0.15519492,2620.7,2620.6,0.22889]
[1724293210397,0.3669,2620.8,2620.7,0.22888]
[1724293210593,0.5221004,2620.8,2620.7,0.22888]
[1724293210797,0.5221004,2620.8,2620.3,0.00436876]
[1724293210798,4.3381004,2620.8,2620.3,0.00436876]
[1724293211102,3.59187509,2620.7,2620.3,0.00436876]
[1724293211295,0.15519509,2620.6,2620.4,0.2289]
[1724293211703,0.15519509,2620.6,2620.5,0.22889]
[1724293212098,0.15518866,2620.6,2620.3,0.36036876]
[1724293212301,0.3669,2620.8,2620.3,0.36036876]
[1724293212607,0.3669,2620.8,2620.7,0.22888]
[1724293212797,0.52209125,2620.8,2620.7,0.22888]
[1724293213105,4.33809125,2620.8,2620.7,0.22888]
[1724293214397,4.1829,2620.8,2620.7,0.22888]
[1724293214608,0.15518318,2620.8,2620.7,0.22888]
[1724293217002,0.15518318,2620.8,2620.7,4.04488]
[1724293217403,0.59413,2621.3,2621.0,0.22885]
[1724293217404,0.22884,2621.2,2621.0,0.22885]
[1724293217600,0.22884,2621.1,2620.9,0.22885]
[1724293217806,0.22884,2621.2,2621.0,0.22885]
[1724293218208,0.3840259,2621.1,2620.9,0.22885]
[1724293218419,0.1551759,2621.0,2620.9,0.22886]
[1724293218612,0.59413,2621.3,2621.0,0.22884]
[1724293218813,0.1551718,2621.2,2621.1,0.22884]
[1724293219417,3.9703718,2621.2,2621.1,0.22884]
[1724293219609,0.1551718,2621.2,2621.1,0.22884]
[1724293219805,3.9703718,2621.2,2621.0,0.22885]
[1724293220115,0.1551718,2621.1,2621.0,0.22885]
[1724293220309,0.3840018,2621.2,2621.0,0.22885]
[1724293220616,0.1551718,2621.1,2621.0,0.22885]
[1724293220915,0.59413,2621.3,2621.1,0.22884]
[1724293221210,0.3653,2621.3,2621.2,0.22883]
[1724293221410,0.52048056,2621.3,2621.2,0.22883]
[1724293221712,0.15518056,2621.3,2621.2,0.22883]
[1724293222103,0.15518056,2621.3,2621.2,4.04403]
[1724293222811,0.08734471,2621.3,2621.2,9.61612]
[1724293223014,0.00571733,2621.4,2621.2,9.61612]
[1724293223015,0.00571733,2621.4,2621.3,0.80089]
[1724293223206,0.00571733,2621.4,2621.3,4.40972]
[1724293223512,0.16089219,2621.4,2621.1,0.3609]
[1724293223711,0.16089219,2621.4,2621.3,0.22882]
[1724293223712,0.00571733,2621.4,2621.3,0.22882]
[1724293223913,0.00571733,2621.4,2621.2,0.22883]
[1724293223914,0.16087971,2621.4,2621.2,0.22883]
[1724293224109,0.15516238,2621.3,2620.9,0.3657]
[1724293224315,0.15516238,2621.2,2621.0,0.22884]
[1724293224515,3.44233733,2621.4,2621.0,0.22884]
[1724293224714,0.1551677,2621.1,2621.0,0.22884]
[1724293226412,0.1551677,2621.1,2621.0,4.04404]
[1724293227715,0.00571733,2621.4,2621.3,0.22882]
[1724293228222,0.16088814,2621.4,2621.3,0.22882]
[1724293231230,0.16088814,2621.4,2621.3,4.04402]
[1724293231231,0.16085417,2621.4,2621.3,4.04402]
[1724293231530,0.00571733,2621.4,2621.3,4.04402]
[1724293232020,0.16084603,2621.4,2621.3,4.04402]
[1724293234439,0.00571733,2621.4,2621.3,4.04402]
[1724293234638,0.16084173,2621.4,2621.3,4.61609]
[1724293235234,0.16084173,2621.4,2621.3,9.61609]
[1724293235436,0.16084173,2621.4,2621.3,12.58709]
[1724293235852,0.16084173,2621.4,2621.3,12.90810963]
[1724293236338,0.16084173,2621.4,2621.3,7.90810963]
[1724293236645,0.16084173,2621.4,2621.3,7.33603963]
[1724293236830,0.16084173,2621.4,2621.3,4.04402]
[1724293237540,0.16084173,2621.4,2621.3,0.22882]
[1724293237742,0.00571733,2621.4,2621.3,0.22882]
[1724293237943,0.16085702,2621.4,2621.3,0.22882]
[1724293240046,0.16085702,2621.4,2621.3,4.04402]
[1724293240948,0.00571733,2621.4,2621.3,4.04402]
[1724293241449,0.00571733,2621.4,2621.3,4.61609]
[1724293241741,0.16083087,2621.4,2621.3,4.61609]
[1724293242045,0.16083087,2621.4,2621.3,4.04402]
[1724293242543,0.16083087,2621.4,2621.3,0.22882]
[1724293242947,0.16083087,2621.4,2621.2,0.22883]
[1724293243250,0.86911354,2621.3,2621.2,0.22883]
[1724293243441,0.86911354,2621.3,2620.9,0.3657]
[1724293243643,0.53331354,2621.2,2620.8,0.3506]
[1724293243841,0.15511354,2621.1,2620.8,0.3506]
[1724293244042,0.15511354,2621.1,2621.0,0.22885]
[1724293246547,0.00571733,2621.4,2621.1,0.22884]
[1724293246851,0.15507271,2621.3,2621.1,0.22884]
[1724293247050,0.15507271,2621.2,2621.1,0.22884]
[1724293247245,0.50857271,2621.2,2621.1,0.22884]
[1724293247751,0.50857271,2621.2,2621.0,0.22885]
[1724293248048,0.51277271,2621.1,2621.0,0.22885]
[1724293251158,0.3577,2621.1,2621.0,0.22885]
[1724293251446,0.51275153,2621.1,2621.0,0.22885]
[1724293251744,3.72055153,2621.1,2621.0,0.22885]
[1724293252950,7.53575153,2621.1,2620.9,0.22885]
[1724293253137,7.53575153,2621.1,2620.6,0.67006744]
[1724293253138,0.15505153,2621.0,2620.8,0.22886]
[1724293253338,0.15505153,2620.9,2620.8,0.22886]
[1724293253737,3.5655,2621.1,2620.8,0.22886]
[1724293253947,0.15505887,2621.0,2620.9,0.22885]
[1724293254840,3.5655,2621.1,2621.0,0.22885]
[1724293255042,0.3535,2621.2,2621.1,0.22884]
[1724293255635,0.50855258,2621.2,2621.1,0.22884]
[1724293255840,0.15505258,2621.2,2621.1,0.22884]
[1724293256942,0.15505258,2621.2,2621.1,0.80095]
[1724293257246,0.15505258,2621.2,2621.1,4.61615]
[1724293258545,0.00571733,2621.4,2621.3,0.22882]
[1724293258944,0.16074558,2621.4,2621.3,0.22882]
[1724293259143,0.16074558,2621.4,2621.3,0.58882]
[1724293260942,0.16074558,2621.4,2621.3,4.40402]
[1724293261137,0.00571733,2621.4,2621.3,4.40402]
[1724293261337,0.16074566,2621.4,2621.3,4.40402]
[1724293261555,0.00571733,2621.4,2621.3,4.40402]
[1724293261942,0.16074566,2621.4,2621.3,4.40402]
[1724293262340,0.16074566,2621.4,2621.3,0.22882]
[1724293264347,0.16074566,2621.4,2621.2,0.22883]
[1724293264563,0.16074566,2621.4,2621.0,0.3781]
[1724293264564,0.89842833,2621.3,2621.0,0.3781]
[1724293264844,0.15502644,2621.2,2621.0,0.60695]
[1724293265751,0.15502644,2621.2,2621.1,0.22884]
[1724293266338,0.15502644,2621.2,2621.1,0.61404]
[1724293266850,0.15502644,2621.2,2621.1,1.09104302]
[1724293267043,0.15502644,2621.2,2621.1,0.61404]
[1724293267243,0.15502644,2621.2,2621.1,1.09104234]
[1724293267544,0.15501365,2621.2,2621.1,5.47833674]
[1724293267749,0.15501365,2621.2,2621.1,4.90622674]
[1724293268150,0.15501365,2621.2,2621.1,4.42924]
[1724293268353,0.15501365,2621.2,2621.1,1.09102813]
[1724293268654,0.15501365,2621.2,2621.1,0.70582813]
[1724293270555,0.15501365,2621.2,2621.1,0.22884]
[1724293271957,0.3784,2621.3,2621.2,0.22883]
[1724293272347,0.5334056,2621.3,2621.2,0.22883]
[1724293276351,0.5334056,2621.3,2621.1,0.22884]
[1724293276654,0.5178056,2621.2,2621.1,0.22884]
[1724293278255,0.1550056,2621.2,2621.1,0.22884]
[1724293278448,0.1550056,2621.2,2621.1,4.61615]
[1724293278650,0.1550056,2621.2,2621.1,5.09315202]
[1724293278857,0.1550056,2621.2,2621.1,8.06415202]
[1724293279153,0.1550056,2621.2,2621.1,13.06415202]
[1724293279457,5.6e-06,2621.2,2621.1,14.39941931]
[1724293279760,5.6e-06,2621.2,2621.1,14.39938388]
[1724293280454,5.6e-06,2621.2,2621.1,9.14414638]
[1724293281758,5.6e-06,2621.2,2621.1,6.17314638]
[1724293282854,0.00571733,2621.4,2621.3,0.22882]
[1724293283053,0.00571733,2621.4,2621.3,0.7057851]
[1724293283449,0.00571733,2621.4,2621.3,1.18275011]
[1724293283858,0.00571733,2621.4,2621.3,0.7057851]
[1724293286356,0.00571733,2621.4,2621.3,0.22882]
[1724293289264,0.00571733,2621.4,2621.3,5.09304714]
[1724293289566,0.00571733,2621.4,2621.3,4.61609]
[1724293289868,0.00571733,2621.4,2621.3,5.09304714]
[1724293290256,0.00386603,2621.8,2621.7,0.80077]
[1724293290455,2.97363332,2622.2,2622.1,0.22875]
[1724293290763,3.33013332,2622.3,2622.2,0.22875]
[1724293291164,0.3565,2622.3,2622.2,0.22875]
[1724293291366,0.51599147,2622.3,2622.2,0.23348923]
[1724293291763,0.15949147,2622.3,2622.2,0.23348923]
[1724293292767,0.15948507,2622.3,2622.2,0.23348923]
[1724293294864,0.15948507,2622.3,2622.2,0.00473923]
[1724293296170,0.15948908,2622.3,2622.2,0.23348923]
[1724293298567,9.08e-06,2622.3,2622.2,7.58995923]
[1724293298768,0.36221733,2622.5,2622.2,7.01808923]
[1724293299064,0.36221733,2622.5,2622.4,0.22873]
[1724293299458,0.36540752,2622.5,2622.4,0.22873]
[1724293306565,4.17900752,2622.5,2622.3,0.22873]
[1724293306873,3.8136,2622.4,2622.2,0.00473923]
[1724293307073,3.2078,2622.3,2622.2,0.00473923]
[1724293307272,4.1621,2622.3,2622.2,0.00473923]
[1724293307876,4.1621,2622.3,2622.2,0.23348923]
[1724293308467,0.3485,2622.3,2622.2,0.23348923]
[1724293310365,4.1621,2622.3,2622.2,0.00473923]
[1724293310671,4.31716532,2622.3,2622.2,0.00473923]
[1724293312876,4.1621,2622.3,2622.2,0.00473923]
[1724293313186,4.31716349,2622.3,2622.2,0.00473923]
[1724293313678,0.50356349,2622.3,2622.2,0.23348923]
[1724293316372,0.50355973,2622.3,2622.2,0.23348923]
[1724293316675,0.65861968,2622.3,2622.2,0.23348923]
[1724293316889,0.50355995,2622.3,2622.2,0.23348923]
[1724293318974,4.31715995,2622.3,2622.2,0.00473923]
[1724293319976,4.31717211,2622.3,2622.2,0.00473923]
[1724293320380,4.31717211,2622.3,2622.2,0.23348923]
[1724293322382,4.3171729,2622.3,2622.2,0.23348923]
[1724293323984,0.1550729,2622.3,2622.2,0.23348923]
[1724293324482,0.1550729,2622.3,2622.2,0.61258923]
[1724293324684,0.1550729,2622.3,2622.2,0.23348923]
[1724293324880,7.1764729,2622.3,2622.2,0.00473923]
[1724293325778,7.1764729,2622.3,2622.2,0.23348923]
[1724293327179,0.1550729,2622.3,2622.2,0.23348923]
[1724293332293,0.73230752,2622.5,2622.4,0.22873]
[1724293332294,3.70594084,2622.5,2622.4,0.22873]
[1724293332487,3.86095858,2622.5,2622.4,0.22873]
[1724293332877,7.67455858,2622.5,2622.2,0.23347923]
[1724293333195,3.2078,2622.3,2622.2,0.00473923]
[1724293333487,6.33645106,2622.3,2622.0,0.00571733]
[1724293333691,7.66253723,2622.2,2622.0,0.00571733]
[1724293333891,0.53171774,2622.1,2622.0,0.00571733]
[1724293334092,8.17968723,2622.1,2622.0,0.00571733]
[1724293334484,8.17968723,2622.1,2622.0,0.00905888]
[1724293334694,13.40843723,2622.1,2622.0,0.00905888]
[1724293334885,9.94326774,2622.1,2622.0,0.00905888]
[1724293337485,13.41549412,2622.1,2622.0,0.00905888]
[1724293338091,0.22877,2622.0,2621.6,0.2288]
[1724293338287,2.97612519,2621.8,2621.6,0.2288]
[1724293338481,0.15501774,2621.7,2621.6,0.2288]
[1724293338884,0.51181774,2621.7,2621.6,0.2288]
[1724293339189,0.3568,2621.7,2621.6,0.2336308]